bitfinex-derivatives/quotes_SOLF0:USTF0_20241021
["timestamp","ask_amount","ask_price","bid_price","bid_amount"]
[1729552013319,9.2,166.79,166.74,10.30179032]
[1729552013624,9.2,166.79,166.76,2.9993]
[1729552014724,9.2,166.8,166.76,2.9993]
[1729552016527,9.2,166.79,166.74,4.6]
[1729552016825,9.2,166.79,166.75,2.9995]
[1729552017018,9.2,166.77,166.73,7.1576]
[1729552017621,9.2,166.77,166.73,2.5576]
[1729552018221,12.1992,166.77,166.73,2.5576]
[1729552018624,9.2,166.76,166.73,1.2329]
[1729552018828,9.2,166.76,166.73,4.2327]
[1729552019631,4.6,166.79,166.73,13.4327]
[1729552019831,12.199,166.78,166.73,13.4327]
[1729552020228,9.2,166.78,166.74,2.9997]
[1729552021927,12.199,166.78,166.74,2.9997]
[1729552022429,1.2605,166.85,166.76,9.2]
[1729552022629,9.2,166.82,166.76,9.2]
[1729552022830,9.2,166.82,166.76,10.5315]
[1729552023026,9.2,166.83,166.76,1.3315]
[1729552023228,9.2,166.83,166.79,9.2]
[1729552023939,13.8,166.85,166.79,9.2]
[1729552024333,4.6,166.85,166.81,2.9984]
[1729552024531,13.8,166.85,166.81,2.9984]
[1729552025535,9.2,166.86,166.81,9.2]
[1729552025736,9.2,166.86,166.79,4.6]
[1729552025930,9.2,166.86,166.81,9.2]
[1729552026235,12.1976,166.86,166.81,12.1982]
[1729552026538,12.1976,166.86,166.81,9.2]
[1729552026834,9.2,166.86,166.82,12.1981]
[1729552027025,15.2530065,166.87,166.82,9.2]
[1729552027430,12.2555065,166.87,166.82,9.2]
[1729552027735,12.2555065,166.87,166.83,2.998]
[1729552027928,13.8,166.89,166.83,9.2]
[1729552028130,12.197,166.89,166.85,2.9976]
[1729552028634,15.22139275,166.89,166.86,2.9975]
[1729552028831,15.22139275,166.89,166.84,9.2]
[1729552029231,15.22139275,166.89,166.85,2.9977]
[1729552030931,2.9972,166.88,166.84,2.9978]
[1729552031233,12.22439275,166.89,166.84,9.2]
[1729552031537,12.197,166.89,166.85,12.1976]
[1729552031932,15.2535721,166.89,166.85,12.1976]
[1729552033532,9.2,166.86,166.8,1.3173]
[1729552033738,3.0565721,166.89,166.8,1.3173]
[1729552033739,12.1978,166.85,166.81,2.9984]
[1729552037036,9.2,166.85,166.81,2.9984]
[1729552037242,9.2,166.88,166.84,9.2]
[1729552037637,9.2,166.9,166.85,9.2]
[1729552038143,3.03050389,166.89,166.85,9.2]
[1729552038345,3.03050389,166.89,166.85,12.1976]
[1729552038346,2.9971,166.89,166.85,12.1976]
[1729552038544,6.03209841,166.89,166.85,12.1976]
[1729552044251,2.9972,166.88,166.85,12.1976]
[1729552044949,9.2,166.87,166.76,3.04891296]
[1729552045248,9.2,166.81,166.76,9.2]
[1729552045451,12.14253468,166.81,166.76,9.2]
[1729552046055,15.14113468,166.81,166.76,9.2]
[1729552046753,9.2,166.81,166.76,9.2]
[1729552046959,4.62,166.86,166.79,9.2]
[1729552047253,9.2,166.85,166.8,9.2]
[1729552047551,2.9979,166.84,166.8,9.2]
[1729552048050,12.198,166.84,166.79,2.9986]
[1729552048250,22.04002273,166.86,166.79,2.9986]
[1729552048754,2.9979,166.84,166.79,2.9986]
[1729552049950,2.9979,166.84,166.76,15.6816]
[1729552050151,2.9977,166.85,166.8,2.9986]
[1729552052860,1.2718,166.88,166.83,2.9979]
[1729552052861,2.9973,166.88,166.83,2.9979]
[1729552053054,2.934119,166.88,166.81,2.5602]
[1729552053249,14.39,166.9,166.81,2.5602]
[1729552053750,2.9972,166.88,166.83,2.9979]
[1729552053950,5.98257392,166.88,166.81,2.5602]
[1729552054454,5.98257392,166.88,166.83,2.9979]
[1729552055853,4.62,166.92,166.83,4.62]
[1729552056257,2.9968,166.9,166.85,2.9976]
[1729552056654,2.9968,166.9,166.83,4.62]
[1729552056858,15.6284,166.95,166.84,14.39]
[1729552057048,2.9966,166.92,166.84,14.39]
[1729552057359,2.9966,166.92,166.84,15.6132]
[1729552058155,14.39,166.95,166.88,2.9971]
[1729552058356,2.9964,166.93,166.87,14.39]
[1729552058756,2.9964,166.93,166.87,19.01]
[1729552059065,2.9964,166.93,166.89,2.9969]
[1729552059257,2.9965,166.92,166.87,19.01]
[1729552060849,2.9965,166.92,166.88,2.9971]
[1729552067667,19.01,166.95,166.85,14.39]
[1729552067868,19.01,166.95,166.84,1.2232]
[1729552067869,14.39,166.93,166.84,4.221]
[1729552068067,14.39,166.93,166.84,1.49833148]
[1729552068266,2.9973,166.88,166.85,9.2]
[1729552068765,12.1973,166.88,166.83,13.8]
[1729552068968,2.9976,166.86,166.83,9.2]
[1729552069959,2.9976,166.86,166.82,12.1981]
[1729552070971,2.9978,166.85,166.82,9.2]
[1729552071866,2.9978,166.85,166.81,5.5586]
[1729552072066,2.9978,166.85,166.81,14.7586]
[1729552074169,9.2,166.86,166.81,11.7602]
[1729552075570,2.9979,166.84,166.81,11.7602]
[1729552081586,9.2,166.86,166.81,11.7602]
[1729552081781,2.9978,166.85,166.81,14.7586]
[1729552083687,2.998,166.84,166.8,4.6]
[1729552083887,2.998,166.84,166.8,13.8]
[1729552084386,2.998,166.84,166.8,16.7986]
[1729552085587,2.998,166.84,166.8,12.1986]
[1729552085974,2.9984,166.82,166.78,4.49757777]
[1729552086175,9.2,166.83,166.78,6.05867777]
[1729552086382,9.2,166.83,166.78,4.56]
[1729552086785,2.9985,166.81,166.78,4.56]
[1729552088289,9.2,166.85,166.79,9.2]
[1729552088885,2.998,166.84,166.8,2.9986]
[1729552092797,2.998,166.84,166.8,4.4974265]
[1729552095795,2.998,166.84,166.8,2.9986]
[1729552095994,2.98243987,166.87,166.81,9.2]
[1729552096190,2.98243987,166.87,166.82,9.2]
[1729552096191,9.2,166.87,166.82,9.2]
[1729552096502,9.2,166.86,166.82,9.2]
[1729552097000,12.1976,166.86,166.82,12.1981]
[1729552097204,2.9316695,166.85,166.82,12.1981]
[1729552098509,12.1976,166.86,166.82,12.1981]
[1729552099204,2.95414703,166.85,166.82,12.1981]
[1729552099804,12.1976,166.86,166.82,12.1981]
[1729552101106,15.12478106,166.86,166.82,12.1981]
[1729552102908,5.92478106,166.86,166.82,12.1981]
[1729552103605,5.92478106,166.86,166.82,13.69675392]
[1729552103801,5.92478106,166.86,166.82,12.1981]
[1729552105212,2.9982,166.83,166.81,1.49864515]
[1729552105511,9.2,166.83,166.8,1.49864515]
[1729552105710,9.2,166.82,166.78,1.49864515]
[1729552106009,9.2,166.82,166.77,11.7967]
[1729552106413,12.1983,166.82,166.77,14.7958]
[1729552106716,9.2,166.81,166.76,9.2]
[1729552107913,12.1985,166.81,166.76,12.1991]
[1729552108116,9.2,166.82,166.77,1.49902241]
[1729552108607,12.1984,166.82,166.77,4.49812241]
[1729552109009,12.1984,166.82,166.77,2.9991]
[1729552111312,2.9984,166.81,166.77,2.9991]
[1729552112608,9.2,166.82,166.65,73.71175191]
[1729552112811,4.52,166.85,166.75,2.9995]
[1729552112812,12.1989,166.79,166.75,2.9995]
[1729552113311,12.1989,166.79,166.75,2.9994]
[1729552113714,4.52,166.85,166.76,9.2]
[1729552113912,9.2,166.81,166.76,9.2]
[1729552114813,9.2,166.81,166.74,2.5744]
[1729552115019,12.1984,166.81,166.77,2.9991]
[1729552115312,9.2,166.8,166.74,2.5744]
[1729552115515,12.1986,166.8,166.75,2.9993]
[1729552115907,12.1986,166.8,166.74,11.7744]
[1729552116517,9.2,166.8,166.76,2.9992]
[1729552116719,2.9985,166.81,166.76,2.9992]
[1729552116720,12.1985,166.81,166.76,12.1992]
[1729552116909,4.52,166.85,166.77,9.2]
[1729552117113,9.2,166.82,166.77,9.2]
[1729552117513,12.1984,166.82,166.77,12.199]
[1729552118313,12.1984,166.82,166.78,2.999]
[1729552119018,2.9985,166.81,166.78,2.999]
[1729552119322,9.2,166.82,166.78,2.999]
[1729552119618,12.1984,166.82,166.78,2.999]
[1729552121513,2.9981,166.83,166.8,2.9986]
[1729552121718,12.1981,166.83,166.78,9.2]
[1729552122220,15.21326944,166.83,166.79,2.9987]
[1729552124121,12.21516944,166.83,166.8,2.9985]
[1729552132626,15.21326944,166.83,166.8,2.9985]
[1729552133223,9.2,166.82,166.76,4.52]
[1729552133432,9.2,166.81,166.78,2.9989]
[1729552135030,2.9984,166.82,166.78,2.9989]
[1729552135230,12.1984,166.82,166.78,2.9989]
[1729552135632,2.9984,166.82,166.78,2.9989]
[1729552135832,12.1984,166.82,166.78,2.9989]
[1729552140036,9.2,166.82,166.79,2.9987]
[1729552142937,2.9981,166.83,166.79,2.9987]
[1729552143135,12.1981,166.83,166.79,2.9987]
[1729552146036,5.97216431,166.85,166.81,9.2]
[1729552146236,9.2,166.85,166.8,9.2]
[1729552146738,6.02637794,166.84,166.81,2.9984]
[1729552148943,3.02847794,166.84,166.81,2.9984]
[1729552149442,6.02647794,166.84,166.8,9.2]
[1729552150939,3.02847794,166.84,166.81,2.9984]
[1729552152943,2.9976,166.86,166.82,2.9981]
[1729552153540,2.94821161,166.85,166.83,2.9979]
[1729552153748,12.1975,166.87,166.83,2.9979]
[1729552154344,15.14541191,166.87,166.83,2.9979]
[1729552154643,9.2,166.91,166.85,9.2]
[1729552154846,4.52,166.92,166.86,9.2]
[1729552155040,9.2,166.91,166.86,9.2]
[1729552155850,12.1967,166.91,166.87,2.9973]
[1729552160744,2.9967,166.91,166.87,2.9973]
[1729552161353,64.72,166.96,166.84,4.52]
[1729552161354,64.72,166.96,166.9,9.2]
[1729552161563,2.9963,166.94,166.9,9.2]
[1729552162256,2.9963,166.94,166.91,2.9965]
[1729552165362,2.9959,166.95,166.92,2.9963]
[1729552165664,13.7,166.96,166.92,9.2]
[1729552166456,126.51707263,166.98,166.93,9.2]
[1729552166655,123.48675028,166.98,166.93,9.2]
[1729552167161,2.9957,166.97,166.94,2.996]
[1729552167358,123.48675028,166.98,166.94,2.996]
[1729552168461,2.9957,166.97,166.93,12.1962]
[1729552170061,2.9957,166.97,166.94,2.996]
[1729552171558,132.68675028,166.98,166.93,9.2]
[1729552171761,2.9957,166.96,166.93,12.1962]
[1729552176871,2.9952,167.0,166.97,2.9955]
[1729552177067,2.9952,167.0,166.98,9.2]
[1729552177574,2.96999622,166.99,166.98,9.2]
[1729552178066,2.9952,166.99,166.98,9.2]
[1729552180373,2.9948,167.02,166.98,9.2]
[1729552180575,2.9948,167.02,166.93,1.3299]
[1729552180576,2.9948,167.02,166.99,9.2]
[1729552180770,13.7,167.05,167.01,9.2]
[1729552180961,16.73821192,167.05,167.01,9.2]
[1729552181368,12.23821192,167.05,167.01,9.2]
[1729552181769,2.9946,167.03,167.01,9.2]
[1729552190483,2.9943,167.04,167.01,12.1948]
[1729552190980,2.9943,167.04,167.02,9.2]
[1729552194787,2.9943,167.04,167.01,2.9948]
[1729552196976,10.4259,167.09,167.01,2.9948]
[1729552196977,8.25572353,167.26,167.01,17.9894]
[1729552197176,1.3229,167.21,167.01,15.01131792]
[1729552197380,2.9928,167.13,167.07,2.9936]
[1729552197580,2.9928,167.13,167.08,4.5]
[1729552197775,2.9928,167.13,167.09,4.5]
[1729552197975,2.9928,167.13,167.09,13.7]
[1729552198186,9.2,167.15,167.09,13.7]
[1729552198187,2.9925,167.14,167.09,13.7]
[1729552198390,2.9925,167.14,167.09,9.2]
[1729552198694,2.9925,167.14,167.1,4.5]
[1729552200491,12.1923,167.16,167.1,16.6931]
[1729552200793,2.9923,167.16,167.1,13.7]
[1729552200990,12.1923,167.16,167.1,13.7]
[1729552201501,12.192,167.17,167.12,9.2]
[1729552202791,12.192,167.17,167.1,4.5]
[1729552202792,12.1918,167.18,167.14,2.9925]
[1729552203285,2.9918,167.18,167.14,2.9925]
[1729552203492,12.1916,167.19,167.15,12.1923]
[1729552203693,12.1916,167.19,167.15,16.6923]
[1729552204593,2.96491626,167.21,167.15,13.7]
[1729552204789,2.5335,167.23,167.18,9.2]
[1729552204991,9.2,167.22,167.16,9.2]
[1729552205289,9.2,167.2,167.16,9.2]
[1729552205894,9.2,167.2,167.17,2.9918]
[1729552206097,4.5,167.27,167.18,9.2]
[1729552206390,2.9911,167.23,167.19,7.4915]
[1729552206598,12.1911,167.23,167.19,7.4915]
[1729552206796,2.9911,167.23,167.19,7.4915]
[1729552207098,12.1911,167.23,167.19,7.4915]
[1729552207295,5.746,167.27,167.19,13.7]
[1729552207593,9.2,167.24,167.2,2.9913]
[1729552208395,9.2,167.24,167.19,13.7]
[1729552208698,9.2,167.24,167.19,16.6916]
[1729552208699,2.9909,167.23,167.19,16.6916]
[1729552208895,2.9909,167.23,167.19,13.7]
[1729552209195,12.1909,167.23,167.18,9.2]
[1729552209405,12.1909,167.23,167.19,4.5]
[1729552210596,12.1909,167.23,167.19,7.4915]
[1729552211297,3.05999449,167.22,167.18,9.2]
[1729552211510,9.2,167.19,167.16,2.9921]
[1729552211803,9.2,167.19,167.17,4.5]
[1729552212296,12.14365968,167.19,167.15,9.2]
[1729552212502,12.14365968,167.19,167.16,4.5]
[1729552212693,2.9919,167.18,167.16,4.5]
[1729552212898,12.14365968,167.19,167.16,7.4921]
[1729552213594,12.14365968,167.19,167.16,2.9921]
[1729552214000,15.13535968,167.19,167.16,2.9921]
[1729552214397,15.13535968,167.19,167.15,9.2]
[1729552214705,2.9919,167.18,167.15,16.6923]
[1729552216591,2.9919,167.18,167.15,12.1923]
[1729552216795,2.9924,167.15,167.11,4.2195]
[1729552216998,9.2,167.16,167.12,4.5]
[1729552218197,2.9926,167.14,167.11,4.2196]
[1729552218403,2.9926,167.14,167.11,7.493]
[1729552218804,2.9926,167.14,167.11,16.693]
[1729552220504,12.14365968,167.19,167.13,12.1926]
[1729552220701,9.2,167.19,167.13,13.7]
[1729552221197,3.03219115,167.18,167.13,13.7]
[1729552221903,2.9921,167.17,167.14,2.9925]
[1729552226100,3.03219115,167.18,167.13,13.7]
[1729552226300,2.9922,167.16,167.13,16.6926]
[1729552227398,9.2,167.19,167.13,13.7]
[1729552227605,3.06121562,167.19,167.16,9.2]
[1729552227803,1.2993,167.21,167.16,9.2]
[1729552227804,9.2,167.21,167.16,9.2]
[1729552227999,2.9914,167.21,167.18,2.9917]
[1729552228205,2.9914,167.21,167.17,13.76]
[1729552228606,2.9911,167.22,167.19,12.1916]
[1729552230707,7.1049,167.28,167.21,2.9911]
[1729552231417,9.2,167.26,167.2,12.1914]
[1729552231908,2.9909,167.23,167.2,4.56]
[1729552232307,7.1049,167.28,167.2,13.76]
[1729552232507,9.2,167.26,167.2,13.76]
[1729552232707,9.2,167.26,167.2,16.7514]
[1729552233517,2.9907,167.24,167.22,9.2]
[1729552234508,2.9907,167.24,167.21,2.9912]
[1729552237608,2.9907,167.24,167.21,7.5512]
[1729552240215,2.9907,167.24,167.22,9.2]
[1729552240411,2.9907,167.25,167.22,9.2]
[1729552240613,9.2,167.26,167.22,9.2]
[1729552241013,2.9907,167.25,167.22,9.2]
[1729552241613,2.9907,167.25,167.22,12.191]
[1729552242006,2.991,167.23,167.21,13.76]
[1729552243315,2.9908,167.24,167.22,9.2]
[1729552249417,2.9908,167.24,167.22,12.1911]
[1729552249615,2.9906,167.25,167.22,12.1911]
[1729552260523,9.2,167.26,167.21,13.76]
[1729552261028,2.991,167.23,167.21,13.76]
[1729552262034,2.991,167.23,167.21,16.7512]
[1729552265731,9.2,167.26,167.21,9.2]
[1729552265935,9.2,167.23,167.15,1.2442]
[1729552266232,9.2,167.22,167.16,13.7]
[1729552266430,12.20173826,167.22,167.16,16.692]
[1729552267027,2.9916,167.2,167.16,16.692]
[1729552267230,12.20173826,167.22,167.16,16.692]
[1729552267631,2.9916,167.2,167.16,16.692]
[1729552272234,2.9916,167.19,167.16,16.692]
[1729552272628,12.20173826,167.22,167.17,9.2]
[1729552272929,3.00173826,167.22,167.19,12.1916]
[1729552273129,9.2,167.23,167.19,12.1916]
[1729552273729,5.95913951,167.22,167.19,12.1916]
[1729552273929,5.95913951,167.22,167.19,2.9916]
[1729552275136,2.9914,167.2,167.18,9.2]
[1729552275835,2.9914,167.2,167.18,2.9918]
[1729552276024,12.16793951,167.22,167.18,2.9918]
[1729552276224,2.9913,167.21,167.18,2.9918]
[1729552277034,2.9915,167.2,167.17,12.1919]
[1729552278939,12.16793951,167.22,167.18,9.2]
[1729552279238,12.16793951,167.22,167.16,4.5]
[1729552279239,9.2,167.25,167.2,9.2]
[1729552279933,9.2,167.25,167.2,13.7]
[1729552280129,2.9909,167.24,167.22,9.2]
[1729552281938,2.9909,167.24,167.22,12.191]
[1729552285140,1.2821,167.28,167.22,9.2]
[1729552285338,9.2,167.27,167.22,9.2]
[1729552286042,2.9907,167.24,167.22,9.2]
[1729552290447,9.2,167.27,167.15,1.2442]
[1729552290448,9.2,167.25,167.2,4.5]
[1729552290737,9.2,167.24,167.19,13.7]
[1729552290940,2.991,167.23,167.2,2.9914]
[1729552294641,2.991,167.23,167.2,4.48710454]
[1729552295343,2.991,167.23,167.2,2.9914]
[1729552296350,2.991,167.23,167.21,1.49567582]
[1729552296642,2.991,167.23,167.2,12.1914]
[1729552297248,2.991,167.23,167.21,1.49569164]
[1729552297546,2.991,167.23,167.2,2.9914]
[1729552297749,2.991,167.23,167.21,1.49567825]
[1729552297947,2.991,167.23,167.2,12.1914]
[1729552298138,2.991,167.23,167.21,1.49567752]
[1729552298340,2.991,167.23,167.2,12.1914]
[1729552298541,2.991,167.23,167.21,1.49567752]
[1729552298737,2.991,167.23,167.2,12.1914]
[1729552299054,2.991,167.23,167.21,1.49567752]
[1729552299244,2.991,167.23,167.2,12.1914]
[1729552299845,2.991,167.23,167.21,1.4956775]
[1729552300048,2.991,167.23,167.2,12.1914]
[1729552300249,2.991,167.23,167.21,1.4956775]
[1729552300457,2.991,167.23,167.2,12.1914]
[1729552300747,2.991,167.23,167.21,1.4956775]
[1729552300938,2.991,167.23,167.2,12.1914]
[1729552301143,2.991,167.23,167.21,1.4956775]
[1729552301346,2.991,167.23,167.2,12.1914]
[1729552301650,2.991,167.23,167.21,1.4956775]
[1729552301850,2.991,167.23,167.2,12.1914]
[1729552302149,2.991,167.23,167.21,1.49569186]
[1729552302350,2.991,167.23,167.2,12.1914]
[1729552302545,2.991,167.23,167.21,1.49569186]
[1729552302746,2.991,167.23,167.2,2.9914]
[1729552302949,2.991,167.23,167.21,1.4956776]
[1729552303246,2.991,167.23,167.2,2.9914]
[1729552303553,2.991,167.23,167.21,1.4956775]
[1729552303848,2.991,167.23,167.2,2.9914]
[1729552304047,2.991,167.23,167.21,1.49568468]
[1729552304248,2.991,167.23,167.2,2.9914]
[1729552304542,2.991,167.23,167.21,1.49570622]
[1729552304744,2.991,167.23,167.2,2.9914]
[1729552304944,2.991,167.23,167.21,1.49570622]
[1729552305145,2.991,167.23,167.2,2.9914]
[1729552305349,2.991,167.23,167.21,1.49570622]
[1729552305649,2.991,167.23,167.2,2.9914]
[1729552305849,2.991,167.23,167.21,1.49570622]
[1729552306049,2.991,167.23,167.2,2.9914]
[1729552306244,2.991,167.23,167.21,1.49570622]
[1729552306452,2.991,167.23,167.2,2.9914]
[1729552306650,2.991,167.23,167.21,1.49570622]
[1729552306853,2.991,167.23,167.2,2.9914]
[1729552307160,2.991,167.23,167.21,1.49570622]
[1729552307345,2.991,167.23,167.2,2.9914]
[1729552307649,2.991,167.23,167.21,1.49566404]
[1729552307854,2.991,167.23,167.2,2.9914]
[1729552308150,2.991,167.23,167.21,1.49566315]
[1729552308350,2.991,167.23,167.2,2.9914]
[1729552308553,2.991,167.23,167.21,1.49566315]
[1729552308750,2.991,167.23,167.2,2.9914]
[1729552308953,2.991,167.23,167.21,1.49566315]
[1729552309150,2.991,167.23,167.2,2.9914]
[1729552309450,2.9912,167.21,167.18,13.7]
[1729552309653,5.92780568,167.21,167.19,1.49577104]
[1729552309850,5.92780568,167.21,167.2,1.49577104]
[1729552310853,5.92780568,167.21,167.18,16.6916]
[1729552311154,2.9912,167.21,167.19,1.49579142]
[1729552311355,2.9912,167.21,167.2,1.49579142]
[1729552316756,15.19479139,167.21,167.2,1.49579142]
[1729552316963,2.9921,167.17,167.16,1.49585988]
[1729552317262,9.2,167.17,167.14,1.3351]
[1729552317461,9.2,167.17,167.15,1.49612742]
[1729552317661,2.9923,167.16,167.14,1.3351]
[1729552321257,2.9923,167.16,167.14,10.5351]
[1729552322267,2.9923,167.16,167.14,12.03129007]
[1729552326169,2.9923,167.16,167.14,1.3351]
[1729552326368,2.9923,167.16,167.14,2.83129007]
[1729552327268,2.9923,167.16,167.14,1.3351]
[1729552330379,2.9916,167.19,167.16,2.992]
[1729552330575,9.2,167.22,167.17,9.2]
[1729552330777,9.2,167.21,167.17,9.2]
[1729552330975,12.20108032,167.21,167.17,9.2]
[1729552331976,2.9917,167.19,167.17,9.2]
[1729552333883,2.992,167.17,167.16,1.49598219]
[1729552334085,9.2,167.18,167.14,7.33108219]
[1729552334479,2.992,167.17,167.14,7.33108219]
[1729552334679,2.992,167.17,167.15,1.49598219]
[1729552334879,2.992,167.17,167.14,7.33108219]
[1729552335680,2.992,167.17,167.15,1.49598219]
[1729552335881,2.992,167.17,167.16,1.49598219]
[1729552336082,2.992,167.17,167.15,1.49598219]
[1729552336384,2.992,167.17,167.16,1.49598219]
[1729552336577,2.992,167.17,167.15,1.49598219]
[1729552336778,2.992,167.17,167.16,1.49598219]
[1729552336978,2.992,167.17,167.15,1.49598219]
[1729552337190,2.992,167.17,167.16,1.49598219]
[1729552337387,2.992,167.17,167.15,1.49598219]
[1729552337689,2.992,167.17,167.16,1.49598219]
[1729552337988,2.992,167.17,167.15,1.49598219]
[1729552338185,2.992,167.17,167.16,1.49598219]
[1729552338386,2.992,167.17,167.15,1.49598219]
[1729552338582,2.992,167.17,167.16,1.49598219]
[1729552338788,2.992,167.17,167.15,1.49598219]
[1729552338982,2.992,167.17,167.16,1.49598219]
[1729552339183,2.992,167.17,167.15,1.49598219]
[1729552339381,2.992,167.17,167.16,1.49598219]
[1729552339583,2.992,167.17,167.15,1.49598219]
[1729552339883,2.992,167.17,167.16,1.49598219]
[1729552340186,2.992,167.17,167.15,1.49598219]
[1729552340386,2.992,167.17,167.16,1.49598219]
[1729552340582,2.992,167.17,167.15,1.49598219]
[1729552340783,2.992,167.17,167.16,1.49598219]
[1729552340987,2.992,167.17,167.15,1.49598219]
[1729552341190,2.992,167.17,167.16,1.49598219]
[1729552341392,2.992,167.17,167.15,1.49598219]
[1729552341586,2.992,167.17,167.16,1.49598219]
[1729552341786,2.992,167.17,167.15,1.49598219]
[1729552341983,2.992,167.17,167.16,1.49598219]
[1729552342186,9.2,167.17,167.14,1.49598219]
[1729552342384,9.2,167.15,167.09,1.49598219]
[1729552342589,9.2,167.13,167.1,4.48918219]
[1729552342892,9.2,167.13,167.1,2.9932]
[1729552343089,9.2,167.13,167.11,1.4962516]
[1729552343288,9.2,167.13,167.09,4.5]
[1729552343495,9.2,167.13,167.11,2.993]
[1729552343695,9.2,167.15,167.11,1.49625575]
[1729552343897,9.2,167.15,167.12,1.49625575]
[1729552344197,12.1925,167.15,167.12,2.9928]
[1729552344696,5.52727188,167.19,167.11,1.49621352]
[1729552344697,9.2,167.14,167.11,1.49621352]
[1729552344995,12.1925,167.14,167.11,4.48921352]
[1729552345389,12.1925,167.14,167.11,2.993]
[1729552349999,12.1925,167.14,167.11,4.48920506]
[1729552352198,12.1925,167.14,167.11,2.993]
[1729552354087,12.1925,167.14,167.11,4.48920506]
[1729552354293,12.1925,167.14,167.11,2.993]
[1729552354593,12.1925,167.14,167.11,4.48920506]
[1729552354792,12.1925,167.14,167.11,2.993]
[1729552354992,12.1925,167.14,167.11,4.48920506]
[1729552355298,12.1925,167.14,167.11,2.993]
[1729552355497,2.9921,167.17,167.14,2.9925]
[1729552355694,2.9921,167.17,167.09,4.5]
[1729552355695,9.2,167.17,167.13,9.2]
[1729552355905,4.19477188,167.19,167.08,1.318]
[1729552355906,9.2,167.16,167.11,10.69620506]
[1729552356193,2.9927,167.14,167.12,1.49620506]
[1729552356497,2.9927,167.14,167.11,4.48920506]
[1729552357296,12.1929,167.12,167.11,1.49620506]
[1729552357498,12.1929,167.12,167.07,6.9672]
[1729552357689,9.2,167.1,167.07,6.9672]
[1729552357998,9.2,167.12,167.08,4.48971197]
[1729552358197,9.2,167.12,167.09,1.49621197]
[1729552359102,12.193,167.12,167.09,2.9934]
[1729552359299,12.193,167.12,167.09,4.48961197]
[1729552359499,12.193,167.12,167.09,2.9934]
[1729552359701,12.193,167.12,167.09,4.48961197]
[1729552359904,9.2,167.12,167.08,1.49621197]
[1729552360195,9.2,167.12,167.09,1.49621197]
[1729552360196,2.9932,167.11,167.09,1.49621197]
[1729552360401,9.2,167.12,167.09,1.49621197]
[1729552360596,9.2,167.12,167.08,1.49621197]
[1729552360797,9.2,167.12,167.09,1.49621197]
[1729552360998,9.2,167.12,167.08,1.49621197]
[1729552361200,12.193,167.12,167.09,4.48961197]
[1729552361392,12.193,167.12,167.09,2.9934]
[1729552362103,12.193,167.12,167.09,4.48971601]
[1729552362303,12.193,167.12,167.09,2.9934]
[1729552362504,12.193,167.12,167.09,4.48971601]
[1729552362802,12.193,167.12,167.09,2.9934]
[1729552363005,12.193,167.12,167.09,4.48971601]
[1729552363204,12.193,167.12,167.09,2.9934]
[1729552363408,12.193,167.12,167.09,4.48971601]
[1729552363702,12.193,167.12,167.09,2.9934]